[Event "Late-Titled-Tuesday-Blitz-June-18-2024"]
[Site "Chess.com"]
[Date "2024.06.18"]
[Round "9"]
[White "safikiet"]
[Black "lamomiajunior"]
[Result "0-1"]
[WhiteElo "2455"]
[BlackElo "2679"]
[TimeControl "180+1"]
[EndTime "15:46:55 PDT"]
[Termination "lamomiajunior won by resignation"]

1. e4 {[%clk 0:03:00.9]} 1... g6 {[%clk 0:02:58.8]} 2. d4 {[%clk 0:03:00.2]}
2... Bg7 {[%clk 0:02:58.9]} 3. Nc3 {[%clk 0:02:59.9]} 3... c6 {[%clk 0:02:58.9]}
4. Be3 {[%clk 0:02:57.8]} 4... d5 {[%clk 0:02:55]} 5. Nf3 {[%clk 0:02:55.3]}
5... Bg4 {[%clk 0:02:50.9]} 6. h3 {[%clk 0:02:54.7]} 6... Bxf3 {[%clk
0:02:50.5]} 7. Qxf3 {[%clk 0:02:55.6]} 7... e6 {[%clk 0:02:51.3]} 8. g4 {[%clk
0:02:50.1]} 8... Ne7 {[%clk 0:02:48.7]} 9. O-O-O {[%clk 0:02:48.9]} 9... Nd7
{[%clk 0:02:48.5]} 10. Qg3 {[%clk 0:02:38.3]} 10... Nb6 {[%clk 0:02:38.5]} 11.
f4 {[%clk 0:02:33.6]} 11... dxe4 {[%clk 0:02:02.5]} 12. Nxe4 {[%clk 0:02:17.7]}
12... Qd5 {[%clk 0:02:01.3]} 13. Nc3 {[%clk 0:02:17.2]} 13... Qxh1 {[%clk
0:01:56.3]} 14. Bg2 {[%clk 0:02:16.7]} 14... Qxd1+ {[%clk 0:01:57.2]} 15. Kxd1
{[%clk 0:02:16.9]} 15... O-O-O {[%clk 0:01:57.2]} 16. Ne4 {[%clk 0:01:42.8]}
16... Bxd4 {[%clk 0:01:49.4]} 17. Bxd4 {[%clk 0:01:42]} 17... Rxd4+ {[%clk
0:01:50.3]} 18. Ke2 {[%clk 0:01:42.2]} 18... Rhd8 {[%clk 0:01:50]} 19. c3 {[%clk
0:01:34.1]} 19... R4d5 {[%clk 0:01:46.5]} 20. Qe3 {[%clk 0:01:24.7]} 20... Rb5
{[%clk 0:01:36.8]} 21. b3 {[%clk 0:01:20.3]} 21... Rbd5 {[%clk 0:01:19.7]} 22.
Ng5 {[%clk 0:01:13.2]} 22... Rd2+ {[%clk 0:01:00.6]} 23. Qxd2 {[%clk 0:01:09.1]}
23... Rxd2+ {[%clk 0:01:01.5]} 24. Kxd2 {[%clk 0:01:09.7]} 24... Nbd5 {[%clk
0:01:00.6]} 25. Nxf7 {[%clk 0:00:51.1]} 25... Nxf4 {[%clk 0:01:00.7]} 26. Bf1
{[%clk 0:00:51.3]} 26... Kd7 {[%clk 0:00:58.2]} 27. c4 {[%clk 0:00:46.5]} 27...
e5 {[%clk 0:00:46]} 28. Nxe5+ {[%clk 0:00:44.5]} 28... Ke6 {[%clk 0:00:46.4]}
29. Nf3 {[%clk 0:00:43.3]} 29... h6 {[%clk 0:00:45.5]} 30. Ke3 {[%clk
0:00:41.6]} 30... g5 {[%clk 0:00:46]} 31. h4 {[%clk 0:00:36.9]} 31... Kf6 {[%clk
0:00:46.4]} 32. hxg5+ {[%clk 0:00:33.2]} 32... hxg5 {[%clk 0:00:47.3]} 33. Nd4
{[%clk 0:00:27.7]} 33... Neg6 {[%clk 0:00:45.3]} 34. Nf5 {[%clk 0:00:14.7]}
34... Ne5 {[%clk 0:00:43.4]} 35. Nd6 {[%clk 0:00:14.4]} 35... Nxg4+ {[%clk
0:00:39.8]} 36. Kd4 {[%clk 0:00:14.3]} 36... b6 {[%clk 0:00:35.9]} 37. Nc8
{[%clk 0:00:14]} 37... c5+ {[%clk 0:00:35.6]} 38. Kc3 {[%clk 0:00:12.6]} 38...
Ne3 {[%clk 0:00:35.1]} 39. Bd3 {[%clk 0:00:11.1]} 39... g4 {[%clk 0:00:31.3]}
40. Be4 {[%clk 0:00:08.7]} 40... Ke5 {[%clk 0:00:30.5]} 41. Bh1 {[%clk 0:00:05]}
41... g3 {[%clk 0:00:29]} 42. Nxa7 {[%clk 0:00:04.9]} 42... Kd6 {[%clk
0:00:27.3]} 43. Nc8+ {[%clk 0:00:04]} 43... Kc7 {[%clk 0:00:27.3]} 44. Nxb6
{[%clk 0:00:03.4]} 44... Kxb6 {[%clk 0:00:27.1]} 45. b4 {[%clk 0:00:03.8]} 45...
cxb4+ {[%clk 0:00:26.1]} 46. Kxb4 {[%clk 0:00:03.9]} 46... Nd3+ {[%clk
0:00:21.1]} 47. Kc3 {[%clk 0:00:03.7]} 47... Nf2 {[%clk 0:00:21.7]} 48. Bf3
{[%clk 0:00:03.5]} 48... Kc5 {[%clk 0:00:22.1]} 49. a4 {[%clk 0:00:03.5]} 49...
Nxc4 {[%clk 0:00:21.8]} 50. a5 {[%clk 0:00:02.1]} 50... Nxa5 {[%clk 0:00:21.2]}
51. Kd2 {[%clk 0:00:02.7]} 51... Kd4 {[%clk 0:00:21.6]} 52. Ke2 {[%clk
0:00:02.9]} 52... Nc4 {[%clk 0:00:20.6]} 53. Kf1 {[%clk 0:00:03.2]} 53... Ne5
{[%clk 0:00:21.5]} 54. Ba8 {[%clk 0:00:02.3]} 54... Ke3 {[%clk 0:00:21.1]} 55.
Kg2 {[%clk 0:00:02.6]} 55... Kf4 {[%clk 0:00:22]} 56. Bb7 {[%clk 0:00:02.6]}
56... Neg4 {[%clk 0:00:22.1]} 57. Ba8 {[%clk 0:00:02.8]} 57... Ne3+ {[%clk
0:00:23]} 58. Kg1 {[%clk 0:00:02.1]} 58... Ne4 {[%clk 0:00:21]} 59. Bb7 {[%clk
0:00:01]} 59... Nc3 {[%clk 0:00:20.3]} 60. Ba8 {[%clk 0:00:01.3]} 60... Ne2+
{[%clk 0:00:20.4]} 61. Kh1 {[%clk 0:00:01.5]} 61... Nd4 {[%clk 0:00:19.5]} 62.
Bb7 {[%clk 0:00:01.6]} 62... Nf3 {[%clk 0:00:17.7]} 63. Bxf3 {[%clk 0:00:01.3]}
63... Kxf3 {[%clk 0:00:18.4]} 64. Kg1 {[%clk 0:00:02.2]} 64... g2 {[%clk
0:00:18.2]} 0-1

[Event "Late-Titled-Tuesday-Blitz-June-18-2024"]
[Site "Chess.com"]
[Date "2024.06.18"]
[Round "9"]
[White "HalfIsCrayfish"]
[Black "MarceloPlaya"]
[Result "1-0"]
[WhiteElo "2566"]
[BlackElo "2417"]
[TimeControl "180+1"]
[EndTime "15:46:56 PDT"]
[Termination "HalfIsCrayfish won on time"]

1. d4 {[%clk 0:02:56.8]} 1... e6 {[%clk 0:02:59.9]} 2. c4 {[%clk 0:02:56.3]}
2... Nf6 {[%clk 0:02:59.4]} 3. Nc3 {[%clk 0:02:56.5]} 3... Bb4 {[%clk
0:02:59.3]} 4. Nf3 {[%clk 0:02:52.3]} 4... O-O {[%clk 0:02:58.9]} 5. Bg5 {[%clk
0:02:50]} 5... d5 {[%clk 0:02:57.2]} 6. e3 {[%clk 0:02:46.7]} 6... c6 {[%clk
0:02:56.4]} 7. Rc1 {[%clk 0:02:44.7]} 7... Nbd7 {[%clk 0:02:52.5]} 8. Bd3 {[%clk
0:02:42]} 8... h6 {[%clk 0:02:48.9]} 9. Bh4 {[%clk 0:02:40.6]} 9... Qa5 {[%clk
0:02:33.1]} 10. O-O {[%clk 0:02:30]} 10... dxc4 {[%clk 0:02:26.2]} 11. Bxc4
{[%clk 0:02:28.4]} 11... Qh5 {[%clk 0:02:24.3]} 12. Bg3 {[%clk 0:02:16.8]} 12...
Bxc3 {[%clk 0:02:17]} 13. bxc3 {[%clk 0:02:13.2]} 13... Ne4 {[%clk 0:02:15]} 14.
Nd2 {[%clk 0:01:44.6]} 14... Nxg3 {[%clk 0:02:11.3]} 15. hxg3 {[%clk 0:01:45.5]}
15... Qxd1 {[%clk 0:02:02.2]} 16. Rfxd1 {[%clk 0:01:46.4]} 16... e5 {[%clk
0:01:58]} 17. Bb3 {[%clk 0:01:42.6]} 17... exd4 {[%clk 0:01:52.4]} 18. cxd4
{[%clk 0:01:40.8]} 18... Nf6 {[%clk 0:01:39.1]} 19. Nc4 {[%clk 0:01:38.9]} 19...
Be6 {[%clk 0:01:28.3]} 20. Na5 {[%clk 0:01:34]} 20... Bxb3 {[%clk 0:01:22.4]}
21. Nxb3 {[%clk 0:01:34.9]} 21... Rfe8 {[%clk 0:01:07.5]} 22. Nc5 {[%clk
0:01:31.7]} 22... Re7 {[%clk 0:01:06.9]} 23. Rc2 {[%clk 0:01:30.4]} 23... Ne4
{[%clk 0:01:03.9]} 24. Nxe4 {[%clk 0:01:29.8]} 24... Rxe4 {[%clk 0:01:03.4]} 25.
Rb1 {[%clk 0:01:18.4]} 25... Re7 {[%clk 0:01:02.2]} 26. Rb3 {[%clk 0:01:15.8]}
26... Rd8 {[%clk 0:00:58.9]} 27. f3 {[%clk 0:01:14.8]} 27... Rdd7 {[%clk
0:00:55.9]} 28. Kf2 {[%clk 0:01:14.6]} 28... g6 {[%clk 0:00:53.1]} 29. g4 {[%clk
0:01:13.2]} 29... Kg7 {[%clk 0:00:52.6]} 30. Rd3 {[%clk 0:01:11]} 30... Kf6
{[%clk 0:00:51.4]} 31. e4 {[%clk 0:01:01.8]} 31... Kg5 {[%clk 0:00:41.1]} 32.
Kg3 {[%clk 0:00:43.9]} 32... Kf6 {[%clk 0:00:39.8]} 33. Kf2 {[%clk 0:00:39.6]}
33... Re8 {[%clk 0:00:37]} 34. Ke3 {[%clk 0:00:38.6]} 34... Red8 {[%clk
0:00:34.8]} 35. f4 {[%clk 0:00:35.1]} 35... Ke6 {[%clk 0:00:32.1]} 36. Rc5
{[%clk 0:00:32.2]} 36... Rd6 {[%clk 0:00:27.1]} 37. f5+ {[%clk 0:00:31.2]} 37...
Ke7 {[%clk 0:00:21.4]} 38. e5 {[%clk 0:00:28.3]} 38... Rd5 {[%clk 0:00:20.3]}
39. Rxd5 {[%clk 0:00:28]} 39... Rxd5 {[%clk 0:00:19.8]} 40. Rb3 {[%clk
0:00:23.9]} 40... b6 {[%clk 0:00:19]} 41. Ke4 {[%clk 0:00:23.6]} 41... Ra5
{[%clk 0:00:18.2]} 42. Rc3 {[%clk 0:00:23.3]} 42... Kd7 {[%clk 0:00:17.1]} 43.
e6+ {[%clk 0:00:16.3]} 43... fxe6 {[%clk 0:00:16.2]} 44. fxg6 {[%clk 0:00:16.3]}
44... Rg5 {[%clk 0:00:16.2]} 45. Rh3 {[%clk 0:00:15.2]} 45... Rxg4+ {[%clk
0:00:14.7]} 46. Ke5 {[%clk 0:00:15.5]} 46... Rxg6 {[%clk 0:00:14.7]} 47. g3
{[%clk 0:00:13.8]} 47... Ke7 {[%clk 0:00:14.2]} 48. a4 {[%clk 0:00:13.1]} 48...
Rg5+ {[%clk 0:00:13.5]} 49. Ke4 {[%clk 0:00:13.5]} 49... h5 {[%clk 0:00:12.8]}
50. Kf4 {[%clk 0:00:13.2]} 50... Ra5 {[%clk 0:00:11.4]} 51. Ke4 {[%clk
0:00:10.9]} 51... Kd6 {[%clk 0:00:10.7]} 52. Ke3 {[%clk 0:00:08.4]} 52... Rxa4
{[%clk 0:00:08.6]} 53. Rxh5 {[%clk 0:00:08]} 53... Ra3+ {[%clk 0:00:08.2]} 54.
Kf4 {[%clk 0:00:08.1]} 54... Rd3 {[%clk 0:00:07.4]} 55. Rh8 {[%clk 0:00:05.8]}
55... Rxd4+ {[%clk 0:00:06.7]} 56. Kf3 {[%clk 0:00:06.2]} 56... Kc5 {[%clk
0:00:05.5]} 57. g4 {[%clk 0:00:06.1]} 57... Rd1 {[%clk 0:00:04.5]} 58. Rh3
{[%clk 0:00:03.3]} 58... a5 {[%clk 0:00:02.2]} 59. g5 {[%clk 0:00:02.4]} 59...
a4 {[%clk 0:00:01.5]} 60. g6 {[%clk 0:00:02.8]} 1-0

[Event "Late-Titled-Tuesday-Blitz-June-18-2024"]
[Site "Chess.com"]
[Date "2024.06.18"]
[Round "9"]
[White "nochewycandy"]
[Black "ansko1999"]
[Result "1/2-1/2"]
[WhiteElo "2777"]
[BlackElo "2608"]
[TimeControl "180+1"]
[EndTime "15:47:03 PDT"]
[Termination "Game drawn - timeout vs insufficient material"]

1. d4 {[%clk 0:03:00.9]} 1... d5 {[%clk 0:02:58.9]} 2. Nc3 {[%clk 0:03:01.4]}
2... c5 {[%clk 0:02:58.6]} 3. e4 {[%clk 0:02:53.9]} 3... cxd4 {[%clk 0:02:55.7]}
4. Qxd4 {[%clk 0:02:53.7]} 4... dxe4 {[%clk 0:02:44.5]} 5. Qxd8+ {[%clk
0:02:51.1]} 5... Kxd8 {[%clk 0:02:45.4]} 6. Bf4 {[%clk 0:02:43.4]} 6... e5
{[%clk 0:01:43.8]} 7. O-O-O+ {[%clk 0:02:37.9]} 7... Bd7 {[%clk 0:01:43.3]} 8.
Bxe5 {[%clk 0:02:36.9]} 8... Nc6 {[%clk 0:01:43.8]} 9. Bg3 {[%clk 0:02:31.9]}
9... Nf6 {[%clk 0:01:43.9]} 10. Bh4 {[%clk 0:02:27.8]} 10... Be7 {[%clk
0:01:41.8]} 11. Bb5 {[%clk 0:02:27.4]} 11... Kc7 {[%clk 0:01:38]} 12. Bxf6
{[%clk 0:02:24.5]} 12... Bxf6 {[%clk 0:01:38.9]} 13. Nxe4 {[%clk 0:02:24.1]}
13... Be7 {[%clk 0:01:29]} 14. Nf3 {[%clk 0:02:20.9]} 14... a6 {[%clk
0:01:25.4]} 15. Bc4 {[%clk 0:02:13.3]} 15... Bg4 {[%clk 0:01:04.8]} 16. Bxf7
{[%clk 0:02:10.1]} 16... Rhf8 {[%clk 0:01:01.8]} 17. Bd5 {[%clk 0:02:08]} 17...
Rxf3 {[%clk 0:00:49.9]} 18. gxf3 {[%clk 0:02:08.9]} 18... Bxf3 {[%clk
0:00:50.5]} 19. Nc3 {[%clk 0:01:40.6]} 19... Bxd1 {[%clk 0:00:44.6]} 20. Rxd1
{[%clk 0:01:40.9]} 20... Rd8 {[%clk 0:00:40.7]} 21. Bxc6 {[%clk 0:01:34.7]}
21... Bg5+ {[%clk 0:00:36.6]} 22. Kb1 {[%clk 0:01:35.3]} 22... Rxd1+ {[%clk
0:00:33.9]} 23. Nxd1 {[%clk 0:01:36.2]} 23... Kxc6 {[%clk 0:00:34.1]} 24. c3
{[%clk 0:01:30.9]} 24... Kd5 {[%clk 0:00:34.2]} 25. f3 {[%clk 0:01:31.2]} 25...
Ke5 {[%clk 0:00:32]} 26. Nf2 {[%clk 0:01:28.3]} 26... Bh4 {[%clk 0:00:19.3]} 27.
Nd3+ {[%clk 0:01:27.9]} 27... Kf5 {[%clk 0:00:19.1]} 28. Kc2 {[%clk 0:01:20.4]}
28... g5 {[%clk 0:00:18.9]} 29. Kd2 {[%clk 0:01:18.7]} 29... g4 {[%clk
0:00:18.8]} 30. Ke2 {[%clk 0:01:16.6]} 30... g3 {[%clk 0:00:16.2]} 31. hxg3
{[%clk 0:01:17]} 31... Bxg3 {[%clk 0:00:17.1]} 32. Nc5 {[%clk 0:01:17.7]} 32...
h5 {[%clk 0:00:09.6]} 33. Nxb7 {[%clk 0:01:16.2]} 33... h4 {[%clk 0:00:10.2]}
34. Nc5 {[%clk 0:01:16.8]} 34... h3 {[%clk 0:00:10.4]} 35. Ne4 {[%clk
0:01:07.7]} 35... Kf4 {[%clk 0:00:10.1]} 36. Nf2 {[%clk 0:00:53.4]} 36... h2
{[%clk 0:00:03.8]} 37. Nh1 {[%clk 0:00:47]} 37... Bh4 {[%clk 0:00:03.4]} 38. b4
{[%clk 0:00:42.8]} 38... Bf6 {[%clk 0:00:01.8]} 39. c4 {[%clk 0:00:39.2]} 39...
Bc3 {[%clk 0:00:02.2]} 40. b5 {[%clk 0:00:39]} 40... axb5 {[%clk 0:00:01.6]} 41.
cxb5 {[%clk 0:00:39.9]} 41... Ba5 {[%clk 0:00:01.9]} 42. a4 {[%clk 0:00:40.8]}
42... Bb6 {[%clk 0:00:02.1]} 43. a5 {[%clk 0:00:30.7]} 43... Bxa5 {[%clk
0:00:02.3]} 44. Kf2 {[%clk 0:00:31.6]} 44... Bb6+ {[%clk 0:00:02.3]} 45. Kg2
{[%clk 0:00:32.2]} 45... Ke5 {[%clk 0:00:02.6]} 46. Kxh2 {[%clk 0:00:30.9]}
46... Kd5 {[%clk 0:00:03.5]} 47. Kg3 {[%clk 0:00:31.5]} 47... Kc5 {[%clk
0:00:04.4]} 48. Kf4 {[%clk 0:00:32.1]} 48... Kxb5 {[%clk 0:00:05]} 49. Ke5
{[%clk 0:00:32]} 49... Kc6 {[%clk 0:00:05.1]} 50. Ke6 {[%clk 0:00:30.6]} 50...
Bc7 {[%clk 0:00:05.4]} 51. Nf2 {[%clk 0:00:30.6]} 51... Bh2 {[%clk 0:00:05.2]}
52. Ng4 {[%clk 0:00:30.4]} 52... Bg3 {[%clk 0:00:05.7]} 53. Ne5+ {[%clk
0:00:29.2]} 53... Kc5 {[%clk 0:00:05]} 54. Ng6 {[%clk 0:00:26.8]} 54... Kd4
{[%clk 0:00:04.9]} 55. Kf5 {[%clk 0:00:27.5]} 55... Ke3 {[%clk 0:00:04.7]} 56.
Kg4 {[%clk 0:00:28.2]} 56... Bh2 {[%clk 0:00:04.5]} 57. Nh4 {[%clk 0:00:27.4]}
57... Bb8 {[%clk 0:00:03.4]} 58. Nf5+ {[%clk 0:00:27.7]} 58... Kf2 {[%clk
0:00:02.6]} 59. Ne7 {[%clk 0:00:28.3]} 59... Bc7 {[%clk 0:00:02.4]} 60. Nd5
{[%clk 0:00:28.5]} 60... Bd6 {[%clk 0:00:02.7]} 61. Nc3 {[%clk 0:00:28.9]} 61...
Bb8 {[%clk 0:00:02.7]} 62. Ne4+ {[%clk 0:00:26.9]} 62... Ke3 {[%clk 0:00:03.1]}
63. Nf6 {[%clk 0:00:25.8]} 63... Kd4 {[%clk 0:00:02.2]} 64. Nh5 {[%clk
0:00:21.1]} 64... Bh2 {[%clk 0:00:02.1]} 65. Nf4 {[%clk 0:00:20.4]} 65... Ke5
{[%clk 0:00:01.4]} 66. Ne2 {[%clk 0:00:19.5]} 66... Kf6 {[%clk 0:00:01.5]} 67.
Ng3 {[%clk 0:00:19.3]} 67... Bxg3 {[%clk 0:00:02]} 1/2-1/2

[Event "Late-Titled-Tuesday-Blitz-June-18-2024"]
[Site "Chess.com"]
[Date "2024.06.18"]
[Round "9"]
[White "divudis17"]
[Black "AlexanderMatlak"]
[Result "0-1"]
[WhiteElo "2331"]
[BlackElo "2449"]
[TimeControl "180+1"]
[EndTime "15:47:04 PDT"]
[Termination "AlexanderMatlak won by checkmate"]

1. Nf3 {[%clk 0:03:00.9]} 1... Nf6 {[%clk 0:02:57.2]} 2. c4 {[%clk 0:03:00]}
2... c5 {[%clk 0:02:56.1]} 3. Nc3 {[%clk 0:02:59.3]} 3... b6 {[%clk 0:02:56.5]}
4. e3 {[%clk 0:02:53.3]} 4... g6 {[%clk 0:02:55.7]} 5. d4 {[%clk 0:02:52]} 5...
Bg7 {[%clk 0:02:56]} 6. d5 {[%clk 0:02:43.6]} 6... O-O {[%clk 0:02:55.5]} 7. Be2
{[%clk 0:02:42.9]} 7... d6 {[%clk 0:02:56]} 8. O-O {[%clk 0:02:42.3]} 8... e6
{[%clk 0:02:56.6]} 9. a4 {[%clk 0:02:35.5]} 9... exd5 {[%clk 0:02:56.3]} 10.
cxd5 {[%clk 0:02:35.3]} 10... Na6 {[%clk 0:02:32.5]} 11. Nd2 {[%clk 0:02:28.5]}
11... Nb4 {[%clk 0:02:26]} 12. e4 {[%clk 0:02:26.1]} 12... Re8 {[%clk
0:02:23.3]} 13. f3 {[%clk 0:02:25.8]} 13... Nh5 {[%clk 0:02:05]} 14. Nc4 {[%clk
0:02:24.6]} 14... Ba6 {[%clk 0:02:03.5]} 15. Be3 {[%clk 0:02:21.9]} 15... f5
{[%clk 0:01:59.5]} 16. Qd2 {[%clk 0:01:57.5]} 16... Qe7 {[%clk 0:01:30.4]} 17.
Bg5 {[%clk 0:01:35.4]} 17... Bd4+ {[%clk 0:01:18.2]} 18. Kh1 {[%clk 0:01:33.3]}
18... Qd7 {[%clk 0:01:03.9]} 19. Rae1 {[%clk 0:00:49.9]} 19... Bxc4 {[%clk
0:00:47.7]} 20. Bxc4 {[%clk 0:00:48.8]} 20... a6 {[%clk 0:00:48.3]} 21. Na2
{[%clk 0:00:28.3]} 21... Nxa2 {[%clk 0:00:43]} 22. Bxa2 {[%clk 0:00:29.2]} 22...
fxe4 {[%clk 0:00:40.5]} 23. fxe4 {[%clk 0:00:26.8]} 23... b5 {[%clk 0:00:40.9]}
24. a5 {[%clk 0:00:21.8]} 24... Qg7 {[%clk 0:00:36.7]} 25. Re2 {[%clk
0:00:19.9]} 25... Nf6 {[%clk 0:00:29.2]} 26. Bb1 {[%clk 0:00:18.1]} 26... Ng4
{[%clk 0:00:24.3]} 27. h3 {[%clk 0:00:15.5]} 27... Ne5 {[%clk 0:00:23.9]} 28.
Bf6 {[%clk 0:00:16]} 28... Qd7 {[%clk 0:00:21.9]} 29. Bc2 {[%clk 0:00:13.8]}
29... Rf8 {[%clk 0:00:21.2]} 30. Ree1 {[%clk 0:00:12.7]} 30... Rae8 {[%clk
0:00:20.6]} 31. Bd1 {[%clk 0:00:12.6]} 31... h5 {[%clk 0:00:17.6]} 32. Qh6
{[%clk 0:00:10.5]} 32... Qh7 {[%clk 0:00:17.5]} 33. Qg5 {[%clk 0:00:10]} 33...
Rf7 {[%clk 0:00:15]} 34. Bxe5 {[%clk 0:00:09.3]} 34... Bxe5 {[%clk 0:00:15.3]}
35. Be2 {[%clk 0:00:07.4]} 35... Ref8 {[%clk 0:00:13.5]} 36. Rxf7 {[%clk
0:00:05.5]} 36... Rxf7 {[%clk 0:00:14.4]} 37. Rf1 {[%clk 0:00:04.6]} 37... Rxf1+
{[%clk 0:00:13.3]} 38. Bxf1 {[%clk 0:00:05.5]} 38... Qf7 {[%clk 0:00:11.8]} 39.
Be2 {[%clk 0:00:06]} 39... Bxb2 {[%clk 0:00:10.3]} 40. Bf3 {[%clk 0:00:05.6]}
40... Be5 {[%clk 0:00:09.6]} 41. Qd8+ {[%clk 0:00:01.6]} 41... Kg7 {[%clk
0:00:09.2]} 42. Qc8 {[%clk 0:00:01.6]} 42... Qf4 {[%clk 0:00:08.7]} 43. Kg1
{[%clk 0:00:01.9]} 43... Bd4+ {[%clk 0:00:08.3]} 44. Kf1 {[%clk 0:00:02]} 44...
Qc1+ {[%clk 0:00:08.3]} 45. Ke2 {[%clk 0:00:02.4]} 45... Qc2+ {[%clk 0:00:08.4]}
46. Ke1 {[%clk 0:00:02.5]} 46... Bc3+ {[%clk 0:00:06.6]} 47. Kf1 {[%clk
0:00:02.7]} 47... Qd3+ {[%clk 0:00:06.9]} 48. Kf2 {[%clk 0:00:02.9]} 48... Bd4+
{[%clk 0:00:07.1]} 49. Ke1 {[%clk 0:00:03.4]} 49... Qc3+ {[%clk 0:00:06.5]} 50.
Kd1 {[%clk 0:00:03.5]} 50... Qxa5 {[%clk 0:00:06.7]} 51. Qd7+ {[%clk 0:00:03.3]}
51... Kh6 {[%clk 0:00:06.9]} 52. Qxd6 {[%clk 0:00:04.2]} 52... Qa1+ {[%clk
0:00:06.4]} 53. Ke2 {[%clk 0:00:04.5]} 53... Qb2+ {[%clk 0:00:06.5]} 54. Kd1
{[%clk 0:00:05]} 54... Be3 {[%clk 0:00:02.2]} 55. Qf8+ {[%clk 0:00:04.6]} 55...
Qg7 {[%clk 0:00:02.1]} 56. Qd6 {[%clk 0:00:02]} 56... Qd4+ {[%clk 0:00:01.8]}
57. Kc2 {[%clk 0:00:01.4]} 57... Qc4+ {[%clk 0:00:01.7]} 58. Kd1 {[%clk
0:00:01.3]} 58... Qd4+ {[%clk 0:00:02]} 59. Kc2 {[%clk 0:00:01.4]} 59... Qc4+
{[%clk 0:00:02.6]} 60. Kb1 {[%clk 0:00:02.1]} 60... Qb3+ {[%clk 0:00:02.7]} 61.
Ka1 {[%clk 0:00:01.9]} 61... Bd4# {[%clk 0:00:03.1]} 0-1

[Event "Late-Titled-Tuesday-Blitz-June-18-2024"]
[Site "Chess.com"]
[Date "2024.06.18"]
[Round "9"]
[White "Bauman_Guy"]
[Black "Jospem"]
[Result "1-0"]
[WhiteElo "2934"]
[BlackElo "3048"]
[TimeControl "180+1"]
[EndTime "15:47:08 PDT"]
[Termination "Bauman_Guy won on time"]

1. e4 {[%clk 0:03:00.9]} 1... c5 {[%clk 0:02:59.9]} 2. Nf3 {[%clk 0:03:00.9]}
2... d6 {[%clk 0:03:00.6]} 3. d4 {[%clk 0:03:01]} 3... cxd4 {[%clk 0:03:01.5]}
4. Nxd4 {[%clk 0:03:01.9]} 4... Nf6 {[%clk 0:03:02.3]} 5. Nc3 {[%clk 0:03:02.4]}
5... a6 {[%clk 0:03:02.9]} 6. h3 {[%clk 0:03:02.8]} 6... Nc6 {[%clk 0:02:58.4]}
7. g3 {[%clk 0:03:02.1]} 7... Bd7 {[%clk 0:02:57.5]} 8. Bg2 {[%clk 0:03:02]}
8... g6 {[%clk 0:02:58.1]} 9. O-O {[%clk 0:03:01.8]} 9... Bg7 {[%clk 0:02:58.7]}
10. Be3 {[%clk 0:03:02.4]} 10... O-O {[%clk 0:02:58]} 11. Nd5 {[%clk 0:03:02.6]}
11... Rc8 {[%clk 0:02:57.2]} 12. c3 {[%clk 0:03:02.5]} 12... Ne5 {[%clk
0:02:54.7]} 13. Re1 {[%clk 0:03:02.5]} 13... e6 {[%clk 0:02:50]} 14. Nxf6+
{[%clk 0:03:00.9]} 14... Bxf6 {[%clk 0:02:50.9]} 15. Qe2 {[%clk 0:02:55.2]}
15... Nc4 {[%clk 0:02:49.5]} 16. Bh6 {[%clk 0:02:53.7]} 16... Re8 {[%clk
0:02:47.3]} 17. Rad1 {[%clk 0:02:54.2]} 17... b5 {[%clk 0:02:39.7]} 18. b3
{[%clk 0:02:49.5]} 18... Nb6 {[%clk 0:02:36.4]} 19. Rd3 {[%clk 0:02:43.3]} 19...
Qc7 {[%clk 0:02:30.5]} 20. h4 {[%clk 0:02:27.4]} 20... Be7 {[%clk 0:01:52.5]}
21. h5 {[%clk 0:02:21]} 21... e5 {[%clk 0:01:51.7]} 22. Nc2 {[%clk 0:02:19.6]}
22... Be6 {[%clk 0:01:46.3]} 23. Ne3 {[%clk 0:02:14.8]} 23... Nd7 {[%clk
0:01:46.6]} 24. Red1 {[%clk 0:02:06.1]} 24... Nf6 {[%clk 0:01:45.7]} 25. Bf3
{[%clk 0:02:04.7]} 25... Qc6 {[%clk 0:01:34.2]} 26. Bg5 {[%clk 0:01:31.4]} 26...
Nxe4 {[%clk 0:01:05.6]} 27. Bxe7 {[%clk 0:01:30.3]} 27... Rxe7 {[%clk
0:01:06.5]} 28. Rxd6 {[%clk 0:01:14.8]} 28... Nxc3 {[%clk 0:01:01.1]} 29. Qd2
{[%clk 0:00:32.2]} 29... Qxf3 {[%clk 0:00:52]} 30. Rd8+ {[%clk 0:00:31.3]} 30...
Re8 {[%clk 0:00:51.2]} 31. Rxe8+ {[%clk 0:00:29.8]} 31... Rxe8 {[%clk
0:00:52.1]} 32. Qxc3 {[%clk 0:00:29]} 32... Qxh5 {[%clk 0:00:51.9]} 33. Rd6
{[%clk 0:00:28.6]} 33... Rc8 {[%clk 0:00:41.3]} 34. Qd2 {[%clk 0:00:28.3]} 34...
Qf3 {[%clk 0:00:32]} 35. Rxa6 {[%clk 0:00:24.6]} 35... h5 {[%clk 0:00:27.9]} 36.
Rd6 {[%clk 0:00:23.2]} 36... Re8 {[%clk 0:00:18.1]} 37. a4 {[%clk 0:00:20.5]}
37... bxa4 {[%clk 0:00:17.9]} 38. bxa4 {[%clk 0:00:21.4]} 38... Qa8 {[%clk
0:00:18.5]} 39. a5 {[%clk 0:00:20.6]} 39... Kh7 {[%clk 0:00:17.6]} 40. a6 {[%clk
0:00:19.5]} 40... Qa7 {[%clk 0:00:13.2]} 41. Kh2 {[%clk 0:00:17.9]} 41... h4
{[%clk 0:00:11.9]} 42. gxh4 {[%clk 0:00:17.7]} 42... Qe7 {[%clk 0:00:12.5]} 43.
Kg3 {[%clk 0:00:17.5]} 43... Ra8 {[%clk 0:00:10.7]} 44. Nd5 {[%clk 0:00:13.5]}
44... Qf8 {[%clk 0:00:05.3]} 45. Nf6+ {[%clk 0:00:12.4]} 45... Kg7 {[%clk
0:00:05.9]} 46. Ne4 {[%clk 0:00:12.7]} 46... Qe7 {[%clk 0:00:05.9]} 47. Ng5
{[%clk 0:00:12.2]} 47... Qf6 {[%clk 0:00:01.6]} 48. Nxe6+ {[%clk 0:00:11.4]}
48... fxe6 {[%clk 0:00:02.5]} 49. Rd7+ {[%clk 0:00:12]} 49... Kg8 {[%clk
0:00:03.2]} 50. a7 {[%clk 0:00:11.2]} 50... Rf8 {[%clk 0:00:03.6]} 51. Qe3
{[%clk 0:00:06.9]} 51... e4 {[%clk 0:00:04.1]} 52. Kg2 {[%clk 0:00:04.1]} 52...
Qf5 {[%clk 0:00:03.9]} 53. Qg3 {[%clk 0:00:02.4]} 53... e3 {[%clk 0:00:04.5]}
54. Qxe3 {[%clk 0:00:02.7]} 54... Qg4+ {[%clk 0:00:04.9]} 55. Qg3 {[%clk
0:00:03.3]} 55... Qe4+ {[%clk 0:00:05.7]} 56. Kh2 {[%clk 0:00:04]} 56... e5
{[%clk 0:00:02.7]} 57. Re7 {[%clk 0:00:03.9]} 57... Rf3 {[%clk 0:00:02.1]} 58.
Re8+ {[%clk 0:00:03.3]} 58... Kf7 {[%clk 0:00:02.2]} 59. a8=Q {[%clk 0:00:04]}
59... Rxg3 {[%clk 0:00:02.8]} 60. Qxe4 {[%clk 0:00:03.9]} 60... Rh3+ {[%clk
0:00:02.8]} 61. Kxh3 {[%clk 0:00:04.1]} 61... Kxe8 {[%clk 0:00:03.7]} 62. Qxe5+
{[%clk 0:00:04.6]} 62... Kf7 {[%clk 0:00:04.6]} 63. Kg4 {[%clk 0:00:05.2]} 63...
g5 {[%clk 0:00:04.8]} 64. Kxg5 {[%clk 0:00:05.5]} 64... Kf8 {[%clk 0:00:03.3]}
65. Qc7 {[%clk 0:00:06.4]} 65... Ke8 {[%clk 0:00:03.8]} 66. Kf6 {[%clk 0:00:07]}
1-0